bitfinex-derivatives/quotes_ETHF0:USTF0_20250803
["timestamp","ask_amount","ask_price","bid_price","bid_amount"]
[1754205639637,3.526,3446.6,3446.5,1.6366]
[1754205639833,4.0553,3446.6,3446.5,1.6366]
[1754205640033,4.507,3446.6,3446.5,1.6366]
[1754205640433,5.0372,3446.6,3446.5,1.6366]
[1754205640741,1.8294,3446.6,3446.5,1.6366]
[1754205643640,3.19472521,3446.6,3446.4,0.58038]
[1754205643839,1.8294,3446.4,3446.3,0.58039]
[1754205648347,1.8294,3446.4,3446.3,1.08969]
[1754205648646,1.8294,3446.4,3446.3,1.59519]
[1754205648952,1.8294,3446.4,3446.3,1.90869]
[1754205649447,1.8294,3446.4,3446.3,1.29719]
[1754205650948,1.8294,3446.4,3446.3,1.59519]
[1754205651142,1.8294,3446.4,3446.3,1.90869]
[1754205651342,1.8294,3446.4,3446.3,2.21699]
[1754205651742,2.46432521,3446.6,3446.3,1.90869]
[1754205651948,2.46432521,3446.6,3445.9,1.45117]
[1754205651949,1.8294,3446.6,3446.5,2.21697]
[1754205653144,4.29372521,3446.6,3446.5,0.58037]
[1754205654752,4.29372521,3446.6,3446.5,1.08967]
[1754205655051,4.29372521,3446.6,3446.5,1.38767]
[1754205655552,4.29372521,3446.6,3446.5,1.59517]
[1754205657648,4.29372521,3446.6,3446.5,0.78917]
[1754205657847,1.8294,3446.1,3446.0,3.2078]
[1754205658052,1.8294,3446.1,3446.0,4.08875]
[1754205658254,1.8294,3446.1,3446.0,4.29755]
[1754205658447,1.8294,3446.1,3446.0,4.80305]
[1754205658647,1.8294,3446.1,3446.0,5.11655]
[1754205659048,1.8294,3446.1,3446.0,5.42485]
[1754205659451,1.5112,3446.4,3446.3,0.7298]
[1754205659756,1.5112,3446.4,3446.3,1.6366]
[1754205660156,1.8294,3446.4,3446.3,1.6366]
[1754205661750,0.7304,3446.4,3446.1,0.88074]
[1754205661960,0.7127,3446.2,3446.1,1.38874]
[1754205662161,1.7941,3446.2,3446.1,1.38874]
[1754205662455,1.7941,3446.2,3446.1,1.08284]
[1754205662846,1.7941,3446.2,3446.1,1.59944]
[1754205663861,1.7941,3446.2,3446.1,1.92274]
[1754205664459,0.6282,3446.2,3446.1,2.23614]
[1754205664758,1.0814,3446.4,3446.1,2.23614]
[1754205664960,1.7941,3446.7,3446.6,0.7361]
[1754205665148,2.6401033,3446.7,3446.6,1.6557]
[1754205666153,2.6401033,3446.7,3446.6,1.3423]
[1754205668554,2.6401033,3446.7,3446.6,0.6236]
[1754205668868,0.7127,3446.6,3446.5,1.29346]
[1754205669062,2.6401033,3446.6,3446.5,1.59936]
[1754205669253,1.7941,3446.6,3446.5,1.59936]
[1754205669456,2.64031332,3446.6,3446.5,1.92266]
[1754205669857,2.64031332,3446.6,3446.5,0.58036]
[1754205670560,2.64031332,3446.6,3446.5,1.08276]
[1754205670761,2.64031332,3446.6,3446.5,1.38866]
[1754205671164,2.64031332,3446.6,3446.5,1.019]
[1754205672663,3.22066332,3446.6,3446.2,4.40752]
[1754205672856,0.1986,3446.0,3445.9,1.08847]
[1754205673161,1.7941,3446.0,3445.9,2.23617]
[1754205673665,1.3409,3446.0,3445.9,2.23617]
[1754205673963,1.7941,3446.0,3445.9,2.23617]
[1754205686268,0.7127,3446.5,3446.4,0.58039]
[1754205686470,1.7941,3446.5,3446.4,1.92269]
[1754205686673,1.7941,3446.5,3446.4,1.3423]
[1754205687563,0.7127,3446.5,3446.4,1.0495]
[1754205687764,1.7941,3446.5,3446.4,1.0495]
[1754205688171,1.7941,3446.5,3446.4,1.6557]
[1754205688375,1.7941,3446.5,3446.4,1.3423]
[1754205691376,1.4765,3446.5,3446.4,1.3423]
[1754205691574,1.7796,3446.5,3446.4,1.6557]
[1754205691768,1.7796,3446.5,3446.4,1.6677]
[1754205691769,1.0233,3446.5,3446.4,1.6677]
[1754205691973,1.3264,3446.5,3446.4,1.6677]
[1754205692179,1.795,3446.5,3446.4,1.6677]
[1754205695882,1.3264,3446.5,3446.4,1.6677]
[1754205696386,1.795,3446.5,3446.4,1.6677]
[1754205702288,0.8159,3446.5,3446.4,1.6677]
[1754205702586,1.8057,3446.5,3446.4,1.6677]
[1754205708893,1.8057,3446.5,3446.4,1.3423]
[1754205709193,0.7386,3445.9,3445.8,3.6296]
[1754205709492,1.8299,3445.9,3445.8,4.5576]
[1754205709790,1.8299,3445.9,3445.8,4.883]
[1754205710998,1.8299,3445.9,3445.8,5.46349]
[1754205712291,0.6227,3445.9,3445.8,5.46349]
[1754205713189,1.2913,3445.9,3445.8,25.21749]
[1754205713394,1.6118,3445.9,3445.8,25.21749]
[1754205713695,1.8299,3445.9,3445.8,25.21749]
[1754205716392,1.8299,3445.9,3445.8,24.89209]
[1754205716589,4.29422521,3445.9,3445.8,3.2078]
[1754205716988,1.8299,3445.9,3445.8,3.2078]
[1754205717282,1.8299,3445.9,3445.8,3.5082]
[1754205717488,1.8299,3445.9,3445.8,3.7197]
[1754205717795,1.8299,3445.9,3445.8,4.0365]
[1754205722484,1.8299,3445.9,3445.8,4.2468]
[1754205723497,1.8299,3445.9,3445.8,23.684]
[1754205724389,1.8299,3445.9,3445.8,22.9618]
[1754205725092,1.8299,3445.9,3445.8,23.2618]
[1754205725293,1.8299,3445.9,3445.8,23.7912]
[1754205725494,1.8299,3445.9,3445.8,24.3166]
[1754205727802,1.8299,3445.9,3445.8,22.9618]
[1754205728796,1.8299,3445.9,3445.8,23.2618]
[1754205728997,1.8299,3445.9,3445.8,23.4619]
[1754205729198,1.8299,3445.9,3445.8,24.3166]
[1754205729597,1.8299,3445.9,3445.8,24.6239]
[1754205729899,2.46432521,3446.2,3445.8,24.6239]
[1754205730101,1.8356,3446.6,3446.5,1.62787]
[1754205730401,1.8356,3446.6,3446.5,1.93517]
[1754205732103,1.8356,3446.6,3446.5,1.29857]
[1754205733907,1.8356,3446.6,3446.5,1.08047]
[1754205738300,1.8356,3446.6,3446.5,0.78047]
[1754205741614,1.8356,3446.6,3446.5,0.58037]
[1754205742509,1.8356,3446.6,3446.5,0.88037]
[1754205742714,1.8356,3446.6,3446.5,1.62787]
[1754205742910,1.8356,3446.6,3446.5,1.93517]
[1754205743112,1.8356,3446.6,3446.5,2.24247]
[1754205743314,1.0302,3446.6,3446.5,1.93517]
[1754205743507,0.8289,3446.8,3446.7,0.58034]
[1754205743814,1.6223,3446.8,3446.7,2.24244]
[1754205744017,2.68373371,3446.8,3446.7,2.24244]
[1754205744211,2.68367453,3446.8,3446.7,2.24244]
[1754205744414,1.8356,3446.8,3446.7,2.24244]
[1754205745612,1.8356,3447.2,3447.1,1.94236]
[1754205745810,2.68352525,3447.2,3447.1,1.94236]
[1754205746216,2.68352525,3447.2,3447.1,2.24236]
[1754205746920,1.8356,3447.2,3447.1,2.24236]
[1754205749716,1.8356,3447.2,3447.1,1.93506]
[1754205749920,4.29992521,3447.2,3447.1,1.93506]
[1754205751622,0.7036,3447.0,3446.9,4.0065]
[1754205752023,1.8202,3447.0,3446.9,4.3067]
[1754205752420,1.8202,3447.0,3446.9,4.6337]
[1754205752726,1.8202,3447.0,3446.9,4.8445]
[1754205753223,1.8202,3447.0,3446.9,5.4772]
[1754205753723,0.312,3447.1,3447.0,1.6891]
[1754205754822,1.8202,3447.3,3447.2,1.6891]
[1754205755824,1.8202,3447.3,3447.2,1.3858]
[1754205756322,1.8202,3447.2,3447.1,0.58027]
[1754205756519,4.28452521,3447.2,3447.1,0.58027]
[1754205756720,4.28452521,3447.2,3447.1,1.42587]
[1754205758530,4.28452521,3447.2,3447.1,1.63667]
[1754205758729,4.28452521,3447.2,3447.1,0.58027]
[1754205760934,1.8202,3447.1,3447.0,0.58027]
[1754205761127,0.7036,3447.1,3447.0,0.58027]
[1754205761432,1.8202,3447.1,3447.0,0.58027]
[1754205761925,1.8202,3447.1,3447.0,1.20757]
[1754205762132,1.8202,3447.1,3447.0,1.42597]
[1754205762332,1.8202,3447.1,3447.0,1.63677]
[1754205762631,1.8202,3447.1,3447.0,1.96617]
[1754205762831,1.8202,3447.1,3447.0,2.26947]
[1754205765425,1.8202,3447.1,3447.0,1.96617]
[1754205766035,1.8202,3447.1,3447.0,1.3859]
[1754205766427,1.8202,3447.1,3446.7,0.58033]
[1754205766627,1.8202,3446.8,3446.7,1.42603]
[1754205766827,1.8202,3446.8,3446.7,1.96623]
[1754205767133,1.8202,3446.8,3446.7,2.26953]
[1754205770527,0.312,3446.8,3446.7,2.26953]
[1754205773831,0.312,3446.8,3446.7,22.01253]
[1754205774436,0.6238,3446.8,3446.7,22.01253]
[1754205774638,1.3208,3446.8,3446.7,22.01253]
[1754205775838,1.8202,3446.8,3446.7,22.01253]
[1754205778038,1.8202,3446.8,3446.7,2.26953]
[1754205778239,1.8202,3446.8,3446.7,22.01153]
[1754205779936,1.3057,3446.8,3446.6,0.58035]
[1754205780135,1.5082,3446.8,3446.7,20.0413]
[1754205780437,1.5082,3446.8,3446.7,20.5867]
[1754205780642,1.8202,3446.8,3446.7,20.5867]
[1754205780943,1.8202,3446.8,3446.7,20.7975]
[1754205781833,1.8202,3446.8,3446.7,1.0565]
[1754205782035,1.8202,3446.8,3446.7,20.7975]
[1754205782240,0.7819,3447.6,3446.8,0.9487]
[1754205782436,1.78892736,3447.5,3447.4,0.4118]
[1754205782636,1.57967876,3447.5,3447.4,1.0393]
[1754205782942,2.67237876,3447.5,3447.4,1.356]
[1754205783442,2.67237876,3447.5,3447.4,1.6772]
[1754205784643,1.8241,3447.5,3447.4,1.6772]
[1754205784845,1.5068,3447.6,3447.5,2.2574]
[1754205785050,2.67209514,3447.6,3447.5,2.2574]
[1754205785537,2.67209514,3447.6,3447.5,1.9362]
[1754205785538,1.89669514,3447.6,3447.5,1.9362]
[1754205785730,2.67209514,3447.6,3447.5,2.2574]
[1754205786537,1.8241,3447.6,3447.5,2.2574]
[1754205788037,3.2078,3448.1,3447.7,0.58015]
[1754205788237,1.8241,3447.8,3447.7,2.25735]
[1754205788431,2.67160355,3447.8,3447.7,2.25735]
[1754205789240,2.67160355,3447.8,3447.7,1.93615]
[1754205790342,1.8241,3447.8,3447.7,1.93615]
[1754205791442,0.7314,3447.7,3447.3,3.2078]
[1754205791646,0.7314,3447.2,3447.1,0.58026]
[1754205791940,1.8241,3447.2,3447.1,0.58026]
[1754205792145,1.8241,3447.2,3447.1,1.09116]
[1754205792348,1.8241,3447.2,3447.1,1.41836]
[1754205794544,1.8241,3447.2,3447.1,1.93626]
[1754205796450,1.8241,3447.2,3447.1,0.58026]
[1754205796645,1.8241,3447.2,3447.0,20.31828]
[1754205796845,1.8241,3447.1,3447.0,20.31828]
[1754205797046,0.7314,3447.1,3447.0,20.31828]
[1754205797245,1.8241,3447.1,3447.0,20.31828]
[1754205797747,1.8241,3447.1,3446.9,3.2078]
[1754205797748,1.8241,3447.0,3446.9,3.2078]
[1754205797946,1.8241,3447.0,3446.9,22.9458]
[1754205798551,1.8241,3447.0,3446.9,19.738]
[1754205799549,0.7314,3447.0,3446.9,19.739]
[1754205800148,1.0422,3447.0,3446.9,20.2499]
[1754205800348,1.8241,3447.0,3446.9,20.7783]
[1754205800649,1.8241,3447.0,3446.9,21.095]
[1754205800947,1.8241,3447.0,3446.9,21.4162]
[1754205801451,1.8241,3447.0,3446.9,1.6772]
[1754205801651,1.8241,3447.0,3446.9,21.4162]
[1754205802852,1.8241,3447.0,3446.9,21.095]
[1754205803152,1.8241,3447.0,3446.9,20.1508]
[1754205803347,1.8241,3447.0,3446.9,0.7121]
[1754205803649,1.8241,3447.0,3446.9,20.4511]
[1754205804446,2.40438,3447.0,3446.9,0.7121]
[1754205804651,2.40438,3447.0,3446.9,20.4511]
[1754205804947,0.58035,3446.6,3446.5,19.739]
[1754205805151,2.40445,3446.6,3446.5,19.739]
[1754205805744,1.31175,3446.6,3446.4,0.3003]
[1754205806042,1.8241,3446.5,3446.4,0.5109]
[1754205806244,1.8241,3446.5,3446.4,0.8381]
[1754205806752,1.8241,3446.5,3446.3,19.739]
[1754205806958,0.2181,3446.1,3446.0,0.7285]
[1754205807249,0.7314,3446.1,3446.0,21.4162]
[1754205807642,1.8241,3446.1,3446.0,21.4162]
[1754205808256,1.8241,3446.1,3446.0,21.095]
[1754205809653,1.8241,3446.1,3445.8,3.2078]
[1754205809654,0.7314,3445.9,3445.8,3.2078]
[1754205809846,1.8241,3445.9,3445.8,23.4597]
[1754205810050,1.8241,3445.9,3445.8,23.9881]
[1754205810246,1.8241,3445.9,3445.8,21.097]
[1754205810854,1.8241,3445.9,3445.8,21.4182]
[1754205811347,1.8241,3445.9,3445.8,1.6772]
[1754205811553,1.8241,3445.9,3445.8,21.4192]
[1754205816962,1.8241,3445.9,3445.8,19.9546]
[1754205818160,1.8241,3445.9,3445.8,20.7962]
[1754205818353,1.8241,3445.9,3445.8,21.1087]
[1754205818852,1.8241,3445.9,3445.8,1.3647]
[1754205819061,1.8241,3445.9,3445.8,1.6734]
[1754205822561,1.8241,3445.9,3445.8,2.25389]
[1754205822857,1.8241,3445.9,3445.8,1.6734]
[1754205827964,1.8241,3445.9,3445.8,1.3647]
[1754205828969,1.8241,3445.9,3445.8,1.6734]
[1754205831664,1.8241,3445.9,3445.8,1.3647]
[1754205833260,0.7249,3445.6,3445.5,19.744]
[1754205833466,2.39672,3445.6,3445.5,19.744]
[1754205833664,1.30542,3445.6,3445.4,22.9518]
[1754205833964,1.8162,3445.5,3445.4,24.0099]
[1754205834167,1.8162,3445.5,3445.4,24.3224]
[1754205834356,1.8162,3445.5,3445.4,23.683]
[1754205834557,1.8162,3445.5,3445.4,24.0099]
[1754205834959,1.8162,3445.5,3445.4,24.90295]
[1754205835363,1.8162,3445.5,3445.4,25.21165]
[1754205837968,1.8162,3445.5,3445.4,24.3224]
[1754205838165,0.7249,3445.3,3445.0,3.8347]
[1754205838370,1.8162,3445.1,3445.0,4.2659]
[1754205838571,1.8162,3445.1,3445.0,24.0109]
[1754205839055,4.28052521,3445.1,3445.0,20.8031]
[1754205839263,4.28052521,3445.1,3445.0,1.0581]
[1754205839971,1.8162,3445.1,3445.0,1.6793]
[1754205840565,1.8162,3445.1,3445.0,4.8871]
[1754205841673,1.1771,3445.1,3444.9,1.04500791]
[1754205841864,0.2988,3445.2,3444.9,2.68630791]
[1754205841865,0.2988,3445.0,3444.9,2.68630791]
[1754205843370,1.7797,3445.0,3444.9,2.68630791]
[1754205843678,1.7797,3445.0,3444.9,1.04500791]
[1754205844872,1.7797,3445.0,3444.9,1.54990791]
[1754205845076,1.7797,3445.0,3444.9,2.06580791]
[1754205845471,1.7797,3445.0,3444.9,1.46000791]
[1754205845664,1.7797,3445.0,3444.9,1.76070791]
[1754205846574,1.7797,3445.0,3444.9,2.06580791]
[1754205846971,1.7797,3445.0,3444.9,1.04500791]
[1754205851571,1.7797,3445.0,3443.1,2.46432521]
[1754205851572,0.58076,3444.2,3444.0,0.3007]
[1754205851770,0.58076,3444.2,3444.0,1.0309]
[1754205851771,0.7289,3444.1,3444.0,1.0309]
[1754205851975,1.7797,3444.1,3444.0,1.336]
[1754205853177,1.7797,3444.1,3444.0,1.6413]
[1754205853477,1.7797,3444.1,3444.0,1.336]
[1754205853682,0.7289,3443.9,3443.8,4.5438]
[1754205853981,1.7797,3443.9,3443.8,3.2078]
[1754205854475,1.7797,3443.9,3443.8,4.0178]
[1754205854675,3.2078,3444.7,3443.8,4.0178]
[1754205854676,0.8239,3444.3,3444.2,0.526]
[1754205854877,0.8239,3444.3,3444.2,1.6413]
[1754205855183,3.94522521,3444.7,3444.6,0.7302]
[1754205855482,3.94522521,3444.7,3444.6,1.336]
[1754205855670,4.24402521,3444.7,3444.6,1.336]
[1754205856372,4.24402521,3444.7,3444.6,1.6413]
[1754205856782,4.24402521,3444.7,3444.6,1.336]
[1754205859084,3.77389521,3444.7,3444.2,3.78854]
[1754205859282,1.7797,3444.3,3444.2,5.12914]
[1754205859682,1.7797,3444.3,3444.2,5.42984]
[1754205861291,1.7797,3444.3,3444.2,5.12454]
[1754205861588,1.7797,3444.3,3444.2,5.42984]
[1754205862491,1.7797,3444.7,3444.6,1.6413]
[1754205862889,0.8222,3444.7,3444.6,1.6413]
[1754205863291,1.5742,3444.7,3444.6,1.6413]
[1754205863591,0.2988,3444.9,3444.6,1.61617]
[1754205863791,0.2988,3444.7,3444.6,1.61617]
[1754205864186,0.2988,3444.7,3444.6,2.22197]
[1754205864987,7.45182521,3445.1,3445.0,1.91662]
[1754205865190,4.24402521,3445.1,3445.0,1.91662]
[1754205865385,1.7797,3445.1,3445.0,2.22192]
[1754205865591,1.2704,3445.1,3445.0,5.42972]
[1754205865793,1.7797,3445.1,3445.0,5.42972]
[1754205866093,1.0277,3445.1,3445.0,5.12442]
[1754205866393,1.7797,3445.1,3445.0,5.42972]
[1754205867291,3.2078,3445.5,3445.2,0.58058]
[1754205867485,4.9875,3445.5,3445.4,1.336]
[1754205868206,4.9875,3445.5,3445.4,0.7157]
[1754205870006,4.9875,3445.5,3445.4,1.0208]
[1754205871510,4.9875,3445.5,3445.4,1.336]
[1754205871903,4.9875,3445.5,3445.4,1.6559]
[1754205872604,6.2828,3445.7,3445.6,1.0207]
[1754205872804,7.45849948,3445.7,3445.6,1.6638]
[1754205873111,0.84759948,3445.7,3445.6,1.6638]
[1754205873500,3.5359,3446.0,3445.9,0.7205]
[1754205873702,5.17175679,3446.0,3445.9,1.6638]
[1754205873896,5.91205679,3446.0,3445.9,1.6638]
[1754205874712,5.0646,3446.0,3445.9,1.6638]
[1754205876010,1.8568,3446.0,3445.9,1.6638]
[1754205877411,1.3661,3446.0,3445.9,1.6638]
[1754205878206,0.5412,3446.1,3446.0,2.24425]
[1754205878401,0.8389,3446.1,3446.0,2.24425]
[1754205878607,3.2078,3446.3,3446.2,2.24422]
[1754205878812,3.5359,3446.3,3446.2,2.24422]
[1754205879009,5.0646,3446.3,3446.2,2.24422]
[1754205882602,3.2078,3446.3,3446.2,2.24422]
[1754205883115,3.5359,3446.3,3446.2,2.24422]
[1754205883508,3.8336,3446.3,3446.2,2.24422]
[1754205883907,4.3243,3446.3,3446.2,2.24422]
[1754205884615,1.1165,3446.3,3446.2,2.24422]
[1754205885004,1.8568,3446.3,3446.2,2.24422]
[1754205886611,1.1569,3446.3,3446.2,2.24422]
[1754205886915,1.1569,3446.3,3446.0,3.2078]
[1754205886916,1.6476,3446.5,3446.4,2.24418]
[1754205887213,1.6476,3446.5,3446.4,5.45198]
[1754205887416,2.46432521,3446.8,3446.4,5.45198]
[1754205887417,1.8568,3446.8,3446.7,1.92423]
[1754205887612,1.8568,3446.8,3446.7,2.24413]
[1754205887914,1.0684,3446.8,3446.7,1.92423]
[1754205888214,1.8568,3446.8,3446.7,2.24413]
[1754205889113,4.32112521,3446.8,3446.5,0.58036]
[1754205889313,1.3661,3446.6,3446.5,0.58036]
[1754205889509,1.8568,3446.6,3446.5,0.58036]
[1754205890716,1.8568,3446.5,3446.4,0.58037]
[1754205890916,4.32112521,3446.5,3446.4,0.58037]
[1754205895014,1.8568,3446.4,3446.3,0.58039]
[1754205896513,1.8568,3446.4,3446.3,1.92429]
[1754205896714,1.8568,3446.4,3446.3,2.24419]
[1754205896914,0.3281,3446.4,3446.3,2.24419]
[1754205897123,1.231,3446.7,3446.6,0.7205]
[1754205897317,1.231,3446.7,3446.6,1.6638]
[1754205897613,1.8568,3446.7,3446.6,1.6638]
[1754205898114,1.8568,3446.7,3446.6,2.24415]
[1754205898816,1.8568,3446.7,3446.6,1.92425]
[1754205900121,4.32112521,3446.7,3446.6,0.58035]
[1754205901323,1.8568,3446.7,3446.6,1.08365]
[1754205901625,1.8568,3446.7,3446.6,1.92635]
[1754205901927,1.7968,3447.0,3446.9,0.58029]
[1754205902118,1.7968,3447.0,3446.9,2.21389]
[1754205902727,5.0046,3447.3,3447.2,1.90885]
[1754205903026,1.7968,3447.3,3447.2,1.90885]
[1754205903826,1.0273,3447.3,3447.2,1.90885]
[1754205904026,1.3513,3447.3,3447.2,1.90885]
[1754205904324,6.0095,3447.6,3447.5,1.9088]
[1754205904527,2.64410726,3447.6,3447.5,2.2138]
[1754205904930,2.19860726,3447.6,3447.5,1.9088]
[1754205905122,3.2078,3447.7,3447.5,2.2138]
[1754205905422,3.5108,3447.7,3447.6,1.4323]
[1754205905623,3.2078,3447.7,3447.6,1.6336]
[1754205905920,3.5108,3447.7,3447.6,1.6336]
[1754205906117,5.0046,3447.7,3447.6,1.6336]
[1754205906314,5.261,3447.9,3447.2,3.2078]
[1754205906315,0.303,3447.8,3447.7,1.70746]
[1754205906521,0.303,3447.8,3447.7,1.59556]
[1754205906825,1.0,3448.0,3447.7,1.59556]
[1754205907028,2.7968,3448.0,3447.9,2.21373]
[1754205907219,2.7968,3448.0,3447.9,1.90873]
[1754205907420,0.5059,3447.4,3447.3,1.59093]
[1754205907721,0.8089,3447.4,3447.3,2.21383]
[1754205907929,1.4938,3447.8,3447.7,2.21376]
[1754205908528,1.7968,3447.8,3447.7,2.21376]
[1754205910219,1.324,3448.0,3447.8,0.6229]
[1754205910427,2.2754,3448.0,3447.9,1.90873]
[1754205910629,2.7968,3448.0,3447.9,2.21373]
[1754205910928,2.7968,3448.0,3447.9,1.27983]
[1754205911130,2.7968,3448.0,3447.9,1.59083]
[1754205911433,2.7968,3448.0,3447.9,2.21373]
[1754205912226,1.303,3448.0,3447.9,2.21373]
[1754205912723,1.0,3448.0,3447.9,2.21373]
[1754205913121,1.303,3448.0,3447.9,2.21373]
[1754205913520,2.7968,3448.0,3447.9,2.21373]
[1754205915822,2.1329,3448.0,3447.9,2.21373]
[1754205916027,1.303,3448.0,3447.9,0.58013]
[1754205916224,1.0,3448.0,3447.9,0.58013]
[1754205916428,1.303,3448.0,3447.9,2.21373]
[1754205916823,1.0,3448.0,3447.9,2.21373]
[1754205917529,1.303,3448.0,3447.9,2.21373]
[1754205917828,1.0,3448.0,3447.9,2.21373]
[1754205918233,1e-05,3448.0,3447.9,2.21373]
[1754205918429,1.2544,3448.7,3448.6,0.97941]
[1754205918635,1.5784,3448.7,3448.6,1.60231]
[1754205919829,1.7968,3448.7,3448.6,1.60231]
[1754205920031,1.7968,3448.7,3448.6,1.29731]
[1754205921438,1.7968,3448.7,3448.6,1.60231]
[1754205922129,1.3513,3448.7,3448.6,1.60231]
[1754205922936,1.7968,3448.9,3448.8,1.60228]
[1754205925124,1.7968,3448.9,3448.8,1.29728]
[1754205925430,1.7968,3448.9,3448.8,1.60228]
[1754205926234,1.7968,3448.9,3448.8,1.29728]
[1754205927028,1.7968,3448.9,3448.6,0.305]
[1754205927029,1.7968,3448.9,3448.4,3.2078]
[1754205927236,0.7243,3448.5,3448.4,4.50514]
[1754205927433,1.7968,3448.5,3448.4,4.81014]
[1754205929339,1.7968,3448.5,3448.4,4.50514]
[1754205929633,1.7968,3448.5,3448.4,4.81014]
[1754205929930,2.46432521,3449.1,3449.0,0.57994]
[1754205929931,0.7243,3449.1,3449.0,0.57994]
[1754205930338,1.0273,3449.1,3449.0,0.77804]
[1754205930536,1.7968,3449.1,3449.0,0.77804]
[1754205931134,1.7968,3449.1,3449.0,1.29724]
[1754205934340,1.7968,3449.1,3449.0,1.62264]
[1754205937138,0.7507,3449.5,3449.4,0.57986]
[1754205937345,1.845,3449.5,3449.4,1.29406]
[1754205938846,1.845,3449.5,3449.4,1.61946]
[1754205939242,1.845,3449.5,3449.4,1.29406]
[1754205941144,1.845,3449.5,3449.4,1.61946]
[1754205941641,0.8342,3449.5,3449.4,1.61946]
[1754205941843,1.845,3449.7,3449.6,1.30504]
[1754205942039,1.845,3449.7,3449.6,1.61944]
[1754205942947,0.33858,3449.8,3449.6,1.61944]
[1754205943248,0.3004,3449.7,3449.6,0.97964]
[1754205943548,0.6031,3449.7,3449.6,0.97964]
[1754205943742,1.6281,3449.7,3449.6,1.61944]
[1754205943938,0.01028,3449.8,3449.7,0.7142]
[1754205944145,0.61338,3449.8,3449.7,0.7252]
[1754205944345,1.85528,3449.8,3449.7,1.0396]
[1754205946243,1.85528,3449.8,3449.7,0.7142]
[1754205947047,1.845,3449.8,3449.7,0.7142]
[1754205952244,1.845,3449.8,3449.7,1.0396]
[1754205953052,1.845,3449.8,3449.7,0.7142]
[1754205955250,1.845,3449.8,3449.7,1.0396]
[1754205955650,1.845,3449.8,3449.7,0.7142]
[1754205956851,1.845,3449.8,3449.7,1.0396]
[1754205958759,1.845,3449.9,3449.8,1.61941]
[1754205961462,5.0528,3450.3,3450.2,0.97954]
[1754205961761,5.0528,3450.3,3450.2,1.61934]
[1754205961962,1.845,3450.3,3450.2,1.61934]
[1754205962659,1.3693,3450.3,3450.2,1.61934]
[1754205962853,1.8434,3450.3,3450.2,1.61934]
[1754205963261,1.8434,3450.3,3450.2,1.60494]
[1754205968464,1.8434,3450.3,3450.2,1.29394]
[1754205971462,1.8434,3450.3,3450.2,1.60494]
[1754205974470,1.8434,3450.3,3450.2,1.29394]
[1754205975567,1.8434,3450.3,3450.2,1.60494]
[1754205979567,0.8342,3450.3,3450.2,1.60494]
[1754205979872,1.8472,3450.6,3450.5,1.61509]
[1754205980073,1.8472,3450.6,3450.5,1.30409]
[1754205983774,1.8472,3450.6,3450.5,0.99139]
[1754205984480,1.8472,3450.6,3450.5,1.30409]
[1754205985476,1.8472,3450.6,3450.5,0.57969]
[1754205985670,1.529,3450.5,3450.4,0.5797]
[1754205985872,1.8472,3450.5,3450.4,0.5797]
[1754205988479,1.8472,3450.5,3450.4,20.3077]
[1754205990182,1.8472,3450.5,3450.4,21.0321]
[1754205990671,1.8472,3450.5,3450.4,21.3431]
[1754205991581,1.8472,3450.5,3450.4,21.0321]
[1754205993382,1.8472,3450.5,3450.4,21.3441]
[1754206003880,1.0,3451.0,3450.4,20.1397]
[1754206004072,1.59049484,3450.9,3450.8,1.0297]
[1754206004277,1.59049484,3450.9,3450.8,20.4437]
[1754206004476,0.7418,3450.9,3450.8,20.4437]
[1754206004681,1.8298,3450.9,3450.8,20.4437]
[1754206004881,1.8298,3450.9,3450.8,20.7557]
[1754206006784,1.8298,3450.9,3450.8,23.9635]
[1754206007482,0.6191,3450.9,3450.8,23.9635]
[1754206007686,0.3126,3450.9,3450.8,23.9635]
[1754206008883,0.6191,3450.9,3450.8,23.9635]
[1754206009082,1.088,3450.9,3450.8,23.9635]
[1754206009891,1.0,3451.0,3450.9,1.60933]
[1754206010287,2.6131,3451.0,3450.9,1.60933]
[1754206010588,2.8298,3451.0,3450.9,1.60933]
[1754206011789,2.8298,3451.0,3450.9,1.29733]
[1754206011990,2.8298,3451.0,3450.9,21.02133]
[1754206012187,0.5251,3450.8,3450.7,0.57965]
[1754206012393,0.3126,3450.9,3450.8,1.0297]
[1754206012586,1.088,3450.9,3450.8,4.2375]
[1754206013090,1.8298,3450.9,3450.8,4.2375]
[1754206016793,1.8298,3450.9,3450.8,3.2078]
[1754206017387,1.0,3451.0,3450.9,0.57963]
[1754206017593,1.0,3451.0,3450.9,21.33133]
[1754206017895,1.6191,3451.0,3450.9,21.33133]
[1754206018191,2.6131,3451.0,3450.9,21.33133]
[1754206018692,1.0,3451.0,3450.9,21.33133]
[1754206018898,1.3126,3451.0,3450.9,21.33133]
[1754206019588,1.0,3451.0,3450.9,21.33133]
[1754206020090,1.6191,3451.0,3450.9,21.33133]
[1754206020288,2.3984,3451.0,3450.9,21.33133]
[1754206020491,2.8298,3451.0,3450.9,1.29733]
[1754206020692,2.8298,3451.0,3450.9,21.01933]
[1754206022293,2.8298,3451.0,3450.9,21.34673]
[1754206022586,2.8298,3451.0,3450.9,21.02613]
[1754206023704,2.8298,3451.0,3450.9,21.35353]
[1754206024298,2.8298,3451.0,3450.9,24.56133]
[1754206025496,2.8298,3451.0,3450.9,24.23393]
[1754206026796,2.8298,3451.0,3450.9,24.56133]